bitfinex/quotes_BTCUSD_20250602
["timestamp","ask_amount","ask_price","bid_price","bid_amount"]
[1748825171218,0.25782572,105540.0,105530.0,0.22035645]
[1748825171426,0.25782572,105540.0,105530.0,0.21151968]
[1748825171649,0.58835082,105540.0,105530.0,0.01188543]
[1748825171862,0.68537668,105540.0,105530.0,0.00304863]
[1748825172578,0.68537668,105540.0,105530.0,0.00104863]
[1748825173768,0.68937668,105540.0,105530.0,0.00104863]
[1748825174370,0.68837668,105540.0,105530.0,0.00104863]
[1748825174586,0.8767422,105540.0,105530.0,0.00104863]
[1748825174784,0.8797422,105540.0,105530.0,0.00104863]
[1748825175181,4.35655398,105540.0,105530.0,0.00104863]
[1748825177603,1.08239098,105540.0,105530.0,0.00104863]
[1748825177865,0.98653668,105540.0,105530.0,0.00104863]
[1748825178015,0.97713754,105540.0,105530.0,0.00104863]
[1748825178873,1.07299184,105540.0,105530.0,0.00104863]
[1748825180672,1.10144684,105540.0,105530.0,0.00104863]
[1748825181979,4.76328106,105540.0,105530.0,0.00104863]
[1748825182288,4.67076984,105540.0,105530.0,0.00104863]
[1748825191560,4.37560984,105540.0,105530.0,0.00104863]
[1748825191804,4.67072984,105540.0,105530.0,0.00104863]
[1748825195590,4.67068984,105540.0,105530.0,0.00104863]
[1748825197978,5.08008984,105540.0,105530.0,0.00104863]
[1748825198769,1.10842684,105540.0,105530.0,0.00104863]
[1748825198985,1.18510684,105540.0,105530.0,0.00104863]
[1748825199658,1.08925254,105540.0,105530.0,0.22056819]
[1748825199875,1.08925254,105540.0,105530.0,0.03104863]
[1748825200281,0.99737254,105540.0,105530.0,0.03104863]
[1748825200536,1.08925254,105540.0,105530.0,0.03991867]
[1748825200976,1.08925254,105540.0,105530.0,0.03991853]
[1748825201206,1.08925254,105540.0,105530.0,0.03104863]
[1748825201407,1.08925254,105540.0,105530.0,0.03991856]
[1748825201541,1.08925254,105540.0,105530.0,0.03104863]
[1748825201730,1.08925254,105540.0,105530.0,0.03991854]
[1748825201934,1.08925254,105540.0,105530.0,0.03991847]
[1748825202126,1.08925254,105540.0,105530.0,0.03992101]
[1748825202563,0.99737254,105540.0,105530.0,0.03992101]
[1748825202744,1.08925254,105540.0,105530.0,0.03992101]
[1748825203188,1.08925254,105540.0,105530.0,0.03104863]
[1748825203389,1.08925254,105540.0,105530.0,0.039921]
[1748825203803,1.08925254,105540.0,105530.0,0.22944056]
[1748825203971,1.08925254,105540.0,105530.0,0.24839241]
[1748825204181,1.08925254,105540.0,105530.0,0.039921]
[1748825204466,1.08925254,105540.0,105530.0,0.03104863]
[1748825204467,1.07977746,105540.0,105530.0,0.03104863]
[1748825204693,1.07977746,105540.0,105530.0,0.03992253]
[1748825205285,1.07977746,105540.0,105530.0,0.03992252]
[1748825205491,1.07977746,105540.0,105530.0,0.03104863]
[1748825205692,1.07977746,105540.0,105530.0,0.03992252]
[1748825206646,1.07977746,105540.0,105530.0,0.03992144]
[1748825206837,1.07977746,105540.0,105530.0,0.03104863]
[1748825207067,1.07977746,105540.0,105530.0,0.03992112]
[1748825207254,0.44735436,105540.0,105530.0,0.23951968]
[1748825207448,0.6558055,105540.0,105530.0,0.23891623]
[1748825207664,0.44735436,105540.0,105530.0,0.24839202]
[1748825207857,0.46630362,105540.0,105530.0,0.26734007]
[1748825208058,0.47577861,105540.0,105530.0,0.26734007]
[1748825208213,0.47577861,105540.0,105530.0,0.25847081]
[1748825208424,0.47577861,105540.0,105530.0,0.26734001]
[1748825208612,0.47577861,105540.0,105530.0,0.24899547]
[1748825208849,0.47577861,105540.0,105530.0,0.26733774]
[1748825209244,0.47577861,105540.0,105530.0,0.26733783]
[1748825209558,0.47577861,105540.0,105530.0,0.27681326]
[1748825209826,0.01547445,105540.0,105530.0,0.37266702]
[1748825210292,0.01547445,105540.0,105530.0,0.37266486]
[1748825210626,0.01547436,105540.0,105530.0,0.37266276]
[1748825210849,0.0249489,105540.0,105530.0,0.36380018]
[1748825211052,0.03442371,105540.0,105530.0,0.66762276]
[1748825211362,0.03442362,105540.0,105530.0,0.66762276]
[1748825211560,0.03142362,105540.0,105530.0,0.34423647]
[1748825211758,0.23040004,105540.0,105530.0,0.22943077]
[1748825212101,0.23040004,105540.0,105530.0,0.54234217]
[1748825212102,0.03889915,105540.0,105530.0,0.54234217]
[1748825212307,0.03889915,105540.0,105530.0,0.5423404]
[1748825212660,0.03889915,105540.0,105530.0,0.54295511]
[1748825212884,0.04089915,105540.0,105530.0,0.54295511]
[1748825213232,0.23040076,105540.0,105530.0,0.25685513]
[1748825213384,0.23040076,105540.0,105530.0,0.26633065]
[1748825213815,0.23040076,105540.0,105530.0,0.25685513]
[1748825214590,0.22092622,105540.0,105530.0,0.25685515]
[1748825214811,0.22092622,105540.0,105530.0,0.24799529]
[1748825215401,0.22092622,105540.0,105530.0,0.25685493]
[1748825215633,0.22092622,105540.0,105530.0,0.26633045]
[1748825215776,0.22092622,105540.0,105530.0,0.25747081]
[1748825215977,0.22092622,105540.0,105530.0,0.2663296]
[1748825216176,0.22092622,105540.0,105530.0,0.26632963]
[1748825216414,0.22092622,105540.0,105530.0,0.26632957]
[1748825216613,0.03142461,105540.0,105530.0,0.26632957]
[1748825217017,0.03142461,105540.0,105530.0,0.2758048]
[1748825217224,0.03142461,105540.0,105530.0,0.27580478]
[1748825218028,0.03142461,105540.0,105530.0,0.27580405]
[1748825218522,0.03142461,105540.0,105530.0,0.27580416]
[1748825219126,0.003,105540.0,105530.0,0.6873233]
[1748825219581,0.003,105540.0,105530.0,0.37165654]
[1748825220218,0.003,105540.0,105530.0,0.37165677]
[1748825220442,0.0219489,105540.0,105530.0,0.36280009]
[1748825220641,0.0219489,105540.0,105530.0,0.37165683]
[1748825221053,0.003,105540.0,105530.0,0.38051359]
[1748825221389,0.003,105540.0,105530.0,0.37165683]
[1748825221771,0.003,105540.0,105530.0,0.38051384]
[1748825221966,0.01247436,105540.0,105530.0,0.38051384]
[1748825222169,0.02194899,105540.0,105530.0,0.38051387]
[1748825222400,0.003,105540.0,105530.0,0.38051132]
[1748825223012,0.003,105540.0,105530.0,0.38051177]
[1748825223841,0.01247436,105540.0,105530.0,0.38051177]
[1748825224093,0.01247436,105540.0,105530.0,0.37165683]
[1748825224310,0.01247436,105540.0,105530.0,0.38051053]
[1748825224743,0.003,105540.0,105530.0,0.38050913]
[1748825225453,0.01247436,105540.0,105530.0,0.38050913]
[1748825225687,0.003,105540.0,105530.0,0.38050996]
[1748825226334,0.003,105540.0,105530.0,0.38050891]
[1748825227027,0.003,105540.0,105530.0,0.37165683]
[1748825227269,0.003,105540.0,105530.0,0.38050911]
[1748825227498,0.003,105540.0,105530.0,0.37165683]
[1748825227708,0.003,105540.0,105530.0,0.38051042]
[1748825229934,0.01247436,105540.0,105530.0,0.38051236]
[1748825230144,0.003,105540.0,105530.0,0.38051236]
[1748825230526,0.003,105540.0,105530.0,0.38051286]
[1748825232357,0.003,105540.0,105530.0,0.3805134]
[1748825232868,0.003,105540.0,105530.0,0.38051327]
[1748825233716,0.003,105540.0,105530.0,0.38051321]
[1748825234049,0.003,105540.0,105530.0,0.37165683]
[1748825234251,0.003,105540.0,105530.0,0.38051427]
[1748825234803,0.003,105540.0,105530.0,0.37165683]
[1748825235175,0.003,105540.0,105530.0,0.38051568]
[1748825235394,0.003,105540.0,105530.0,0.37165683]
[1748825237777,0.003,105540.0,105530.0,0.66637683]
[1748825238182,0.003,105540.0,105530.0,0.67524109]
[1748825238383,0.003,105540.0,105530.0,0.66637683]
[1748825239604,0.003,105540.0,105530.0,0.37165683]
[1748825239788,0.003,105540.0,105530.0,0.66633683]
[1748825239955,0.003,105540.0,105530.0,0.67520303]
[1748825240512,0.003,105540.0,105530.0,0.66633683]
[1748825241687,0.003,105540.0,105530.0,0.6752043]
[1748825241923,0.003,105540.0,105530.0,0.66633683]
[1748825242547,0.003,105540.0,105530.0,0.6752043]
[1748825242751,0.003,105540.0,105530.0,0.66633683]
[1748825242953,0.003,105540.0,105530.0,0.67520428]
[1748825243251,0.003,105540.0,105530.0,0.66633683]
[1748825243943,0.003,105540.0,105530.0,0.67520554]
[1748825244143,0.003,105540.0,105530.0,0.66633683]
[1748825244580,0.003,105540.0,105530.0,0.67520554]
[1748825244793,0.003,105540.0,105530.0,0.66633683]
[1748825245414,0.003,105540.0,105530.0,0.67520554]
[1748825245758,0.003,105540.0,105530.0,0.67520734]
[1748825246326,0.003,105540.0,105530.0,0.67520736]
[1748825246555,0.01247436,105540.0,105530.0,0.67520736]
[1748825247025,0.01247427,105540.0,105530.0,0.67520772]
[1748825247234,0.003,105540.0,105530.0,0.67520772]
[1748825247460,0.01247427,105540.0,105530.0,0.67520772]
[1748825247895,0.01247427,105540.0,105530.0,0.66633683]
[1748825248379,0.01247436,105540.0,105530.0,0.67521024]
[1748825248592,0.0219489,105540.0,105530.0,0.67521024]
[1748825248809,0.01247436,105540.0,105530.0,0.66633683]
[1748825249027,0.01247436,105540.0,105530.0,0.67521024]
[1748825249243,0.01247445,105540.0,105530.0,0.67521755]
[1748825249474,0.01247445,105540.0,105530.0,0.63570257]
[1748825249710,0.23040067,105540.0,105530.0,0.2079009]
[1748825249926,0.2427515,105540.0,105530.0,0.20730617]
[1748825250565,0.2427515,105540.0,105530.0,0.20730142]
[1748825250789,0.06272434,105540.0,105530.0,0.22625281]
[1748825250991,0.06272434,105540.0,105530.0,0.2262529]
[1748825251233,0.06272434,105540.0,105530.0,0.2167772]
[1748825251453,0.25222595,105540.0,105530.0,0.22625317]
[1748825251679,0.25222595,105540.0,105530.0,0.23572896]
[1748825251909,0.05324935,105540.0,105530.0,0.23632809]
[1748825252155,0.04722434,105540.0,105530.0,0.23632809]
[1748825252378,0.04722434,105540.0,105530.0,0.24520176]
[1748825253256,0.04722434,105540.0,105530.0,0.25467728]
[1748825253506,0.03774935,105540.0,105530.0,0.25467674]
[1748825253736,0.03774935,105540.0,105530.0,0.23572543]
[1748825253951,0.04722434,105540.0,105530.0,0.22685176]
[1748825254170,0.04722434,105540.0,105530.0,0.23572513]
[1748825254409,0.04722434,105540.0,105530.0,0.23572371]
[1748825254624,0.03774935,105540.0,105530.0,0.22624864]
[1748825254870,0.25312604,105540.0,105530.0,0.20729688]
[1748825255104,0.06362434,105540.0,105530.0,0.23572407]
[1748825255324,0.24365141,105540.0,105530.0,0.20729688]
[1748825255548,0.24365141,105540.0,105530.0,0.19842493]
[1748825255761,0.24365141,105540.0,105530.0,0.20729672]
[1748825256013,0.24365141,105540.0,105530.0,0.21677235]
[1748825256219,0.24365141,105540.0,105530.0,0.21677082]
[1748825256637,0.24365141,105540.0,105530.0,0.22624661]
[1748825256849,0.0541498,105540.0,105530.0,0.22624661]
[1748825257066,0.0541498,105540.0,105530.0,0.22624624]
[1748825257287,0.0541498,105540.0,105530.0,0.22624623]
[1748825257734,0.0541498,105540.0,105530.0,0.21737669]
[1748825257951,0.0541498,105540.0,105530.0,0.22624548]
[1748825258143,0.0541498,105540.0,105530.0,0.21737669]
[1748825258985,0.0541498,105540.0,105530.0,0.22624523]
[1748825259404,0.0541498,105540.0,105530.0,0.23572093]
[1748825259853,0.0541498,105540.0,105530.0,0.23572045]
[1748825260284,0.0541498,105540.0,105530.0,0.22685239]
[1748825260502,0.05414935,105540.0,105530.0,0.22685239]
[1748825260727,0.06362443,105540.0,105530.0,0.236328]
[1748825260941,0.06362443,105540.0,105530.0,0.24519606]
[1748825261254,0.04722443,105540.0,105530.0,0.24519606]
[1748825261824,0.04722443,105540.0,105530.0,0.23572036]
[1748825262037,0.2430515,105540.0,105530.0,0.21676888]
[1748825262232,0.2430515,105540.0,105530.0,0.21676889]
[1748825262443,0.2430515,105540.0,105530.0,0.22624481]
[1748825262659,0.2430515,105540.0,105530.0,0.2357206]
[1748825262885,0.23357669,105540.0,105530.0,0.0177734]
[1748825263116,0.23357669,105540.0,105530.0,0.20729296]
[1748825263318,0.23357669,105540.0,105530.0,0.21676893]
[1748825263536,0.23357669,105540.0,105530.0,0.0177734]
[1748825263774,0.67971754,105540.0,105530.0,0.01777489]
[1748825264184,0.67971754,105540.0,105530.0,0.00890537]
[1748825264401,0.67971754,105540.0,105530.0,0.01777539]
[1748825266354,0.67971754,105540.0,105530.0,0.00890537]
[1748825266545,0.67971754,105540.0,105530.0,0.01777314]
[1748825267167,0.67971754,105540.0,105530.0,0.01777146]
[1748825267946,0.67971754,105540.0,105530.0,0.00890537]
[1748825267952,0.81948495,105540.0,105530.0,0.00890537]
[1748825268187,4.38880795,105540.0,105530.0,0.00890537]
[1748825268417,4.45422286,105540.0,105530.0,0.00890537]
[1748825268886,4.45322286,105540.0,105530.0,0.00890537]
[1748825269327,4.45622286,105540.0,105530.0,0.00890537]
[1748825269801,4.45422286,105540.0,105530.0,0.00890537]
[1748825270241,4.45722286,105540.0,105530.0,0.00890537]
[1748825270473,4.45716772,105540.0,105530.0,0.00890537]
[1748825271626,4.39180795,105540.0,105530.0,0.00890537]
[1748825272316,4.45715035,105540.0,105530.0,0.00890537]
[1748825272535,4.47404371,105540.0,105530.0,0.00890537]
[1748825272749,4.40870131,105540.0,105530.0,0.00890537]
[1748825274760,4.3647882,105540.0,105530.0,0.00890537]
[1748825277380,4.6593082,105540.0,105530.0,0.00890537]
[1748825278038,4.2731882,105540.0,105530.0,0.00890537]
[1748825278255,4.6593482,105540.0,105530.0,0.00890537]
[1748825283366,4.6878062,105540.0,105530.0,0.00890537]
[1748825284013,4.74241393,105540.0,105530.0,0.00890537]
[1748825287243,4.6878062,105540.0,105530.0,0.00890537]
[1748825287764,4.3932862,105540.0,105530.0,0.00890537]
[1748825287981,4.6728062,105540.0,105530.0,0.00890537]
[1748825288202,4.6883062,105540.0,105530.0,0.00890537]
[1748825294922,4.6598482,105540.0,105530.0,0.00890537]
[1748825295140,4.75235942,105540.0,105530.0,0.00890537]
[1748825297594,4.81766851,105540.0,105530.0,0.00890537]
[1748825298839,4.72515729,105540.0,105530.0,0.00890537]
[1748825300217,4.70965729,105540.0,105530.0,0.00890537]
[1748825301445,4.72465729,105540.0,105530.0,0.00890537]
[1748825302490,4.39853729,105540.0,105530.0,0.00890537]
[1748825302696,4.3332282,105540.0,105530.0,0.04080537]
[1748825302899,4.6276682,105540.0,105530.0,0.00890537]
[1748825303309,4.72017942,105540.0,105530.0,0.00890537]
[1748825303957,4.6276682,105540.0,105530.0,0.00890537]
[1748825304730,4.69300477,105540.0,105530.0,0.00890537]
[1748825306335,4.39856477,105540.0,105530.0,0.00890537]
[1748825306542,4.69296477,105540.0,105530.0,0.00890537]
[1748825307409,4.69303354,105540.0,105530.0,0.00890537]
[1748825310999,4.69303354,105540.0,105530.0,0.04060537]
[1748825311212,0.73767054,105540.0,105530.0,0.04060537]
[1748825311456,0.71871539,105540.0,105530.0,0.23012493]
[1748825311650,0.7013172,105540.0,105530.0,0.23012493]
[1748825311862,0.6678509,105540.0,105530.0,0.23012493]
[1748825312068,0.6678509,105540.0,105530.0,0.2389991]
[1748825312501,0.37236763,105540.0,105530.0,0.26742593]
[1748825312716,0.37236763,105540.0,105530.0,0.26742243]
[1748825312717,0.05131689,105540.0,105530.0,0.26742243]
[1748825312922,0.40079179,105540.0,105530.0,0.25855194]
[1748825313128,0.40079179,105540.0,105530.0,0.25855185]
[1748825313353,0.006,105540.0,105530.0,0.68888038]
[1748825313569,0.006,105540.0,105530.0,0.98323914]
[1748825313780,0.006,105540.0,105530.0,0.98322696]
[1748825314022,0.006,105540.0,105530.0,0.98322659]
[1748825314449,0.003,105540.0,105530.0,0.98322659]
[1748825314656,0.02841858,105560.0,105550.0,0.24800511]
[1748825314855,0.36841858,105560.0,105550.0,0.2480052]
[1748825315067,0.36841858,105560.0,105550.0,0.25747875]
[1748825315279,0.36841858,105560.0,105550.0,0.2480052]
[1748825315280,0.37789177,105560.0,105550.0,0.2480052]
[1748825315490,0.36841858,105560.0,105550.0,0.25747875]
[1748825315699,0.35894548,105560.0,105550.0,0.2480052]
[1748825315907,0.37989177,105560.0,105550.0,0.2480052]
[1748825316113,0.38289177,105560.0,105550.0,0.25747875]
[1748825316313,0.38289177,105560.0,105550.0,0.2480052]
[1748825316519,0.38289177,105560.0,105550.0,0.25747875]
[1748825316736,0.37341858,105560.0,105550.0,0.2480052]
[1748825316954,0.38289177,105560.0,105550.0,0.24800529]
[1748825317168,0.5723581,105560.0,105550.0,0.22905774]
[1748825317406,0.56288527,105560.0,105550.0,0.23853156]
[1748825318097,0.55341217,105560.0,105550.0,0.22905765]
[1748825318954,0.5344657,105560.0,105550.0,0.22905783]
[1748825319788,0.5344657,105560.0,105550.0,0.23853192]
[1748825320210,0.5344657,105560.0,105550.0,0.24800592]
[1748825320211,0.54416824,105560.0,105550.0,0.24800592]
[1748825320659,0.54416824,105560.0,105550.0,0.23853192]
[1748825321506,0.54416824,105560.0,105550.0,0.22905783]
[1748825321888,0.54416824,105560.0,105550.0,0.23853192]
[1748825322271,0.54416824,105560.0,105550.0,0.22905783]
[1748825323087,0.54416824,105560.0,105550.0,0.21958365]
[1748825323295,0.54416824,105560.0,105550.0,0.23853192]
[1748825323642,0.54416824,105560.0,105550.0,0.24800592]
[1748825324511,0.37364847,105560.0,105550.0,0.25747983]
[1748825324734,0.38312166,105560.0,105550.0,0.26695356]
[1748825325002,0.38312166,105560.0,105550.0,0.25747938]
[1748825325216,0.38312166,105560.0,105550.0,0.26695302]
[1748825325433,0.38312166,105560.0,105550.0,0.25747938]
[1748825326258,0.39259494,105560.0,105550.0,0.23853174]
[1748825326476,0.58206064,105560.0,105550.0,0.23853174]
[1748825326692,0.58206064,105560.0,105550.0,0.24800565]
[1748825329573,0.57258781,105560.0,105550.0,0.24800565]
[1748825333752,0.56311471,105560.0,105550.0,0.22905774]
[1748825334761,0.55364152,105560.0,105550.0,0.21958365]
[1748825334914,0.55364152,105560.0,105550.0,0.22905783]
[1748825335855,0.55364152,105560.0,105550.0,0.0301]
[1748825336065,0.55364152,105560.0,105540.0,0.52536117]
[1748825336066,0.009474,105550.0,105540.0,0.52536117]
[1748825336277,0.21790565,105550.0,105540.0,0.53483589]
[1748825336502,0.21790565,105550.0,105540.0,0.54431052]
[1748825336724,0.21790565,105550.0,105540.0,0.53483589]
[1748825337305,0.21890565,105550.0,105540.0,0.53483589]
[1748825337511,0.01994728,105550.0,105540.0,0.5531501]
[1748825337739,0.04836892,105550.0,105540.0,0.55315097]
[1748825337924,0.04836892,105550.0,105540.0,0.55315406]
[1748825338129,0.02942083,105550.0,105540.0,0.54431034]
[1748825338374,0.03889483,105550.0,105540.0,0.55315402]
[1748825338580,0.02942083,105550.0,105540.0,0.55315402]
[1748825338692,0.02942074,105550.0,105540.0,0.55315402]
[1748825338895,0.03889465,105550.0,105540.0,0.55315402]
[1748825339300,0.04836883,105550.0,105540.0,0.54431052]
[1748825339503,0.04836883,105550.0,105540.0,0.55378506]
[1748825339911,0.04836883,105550.0,105540.0,0.56263424]
[1748825340130,0.04836883,105550.0,105540.0,0.56264145]
[1748825340529,0.22837902,105550.0,105540.0,0.53479589]
[1748825340772,0.22837902,105550.0,105540.0,0.55312694]
[1748825341004,0.22837902,105550.0,105540.0,0.55312695]
[1748825341703,0.03889537,105550.0,105540.0,0.56260149]
[1748825341914,0.04836928,105550.0,105540.0,0.56321951]
[1748825342120,0.04836928,105550.0,105540.0,0.57208249]
[1748825342327,0.04836991,105550.0,105540.0,0.55374506]
[1748825342538,0.20943192,105550.0,105540.0,0.53421209]
[1748825342749,0.20943192,105550.0,105540.0,0.00887566]
[1748825342956,0.19995783,105550.0,105540.0,0.00887566]
[1748825343835,0.19048365,105550.0,105530.0,0.66751684]
[1748825344138,0.01894953,105540.0,105530.0,0.66691737]
[1748825344305,0.21792604,105540.0,105530.0,0.6479666]
[1748825344722,0.0284247,105540.0,105530.0,0.66691764]
[1748825345125,0.0284247,105540.0,105530.0,0.66691597]
[1748825345355,0.0284247,105540.0,105530.0,0.66791597]
[1748825345535,0.0284247,105540.0,105530.0,0.66105923]
[1748825345735,0.02842425,105540.0,105530.0,0.67053457]
[1748825345935,0.02842425,105540.0,105530.0,0.67053449]
[1748825346140,0.23687593,105540.0,105530.0,0.65905924]
[1748825346339,0.20845168,105540.0,105530.0,0.20144223]
[1748825346543,0.20845168,105540.0,105530.0,0.20204416]
[1748825346715,0.01894971,105540.0,105530.0,0.26197081]
[1748825346916,0.01894971,105540.0,105530.0,0.2613698]
[1748825347119,0.20845132,105540.0,105530.0,0.26197099]
[1748825347317,0.20845132,105540.0,105530.0,0.26136978]
[1748825347554,0.00947445,105540.0,105530.0,0.26197081]
[1748825347769,0.63027783,105550.0,105540.0,0.22100161]
[1748825347918,0.63027783,105550.0,105540.0,0.04037415]
[1748825348123,0.63027783,105550.0,105540.0,0.0161]
[1748825348311,0.63027783,105550.0,105540.0,0.00887412]
[1748825348534,0.01894935,105540.0,105530.0,0.25149502]
[1748825348743,0.01894935,105540.0,105530.0,0.25836775]
[1748825348946,0.02842425,105540.0,105530.0,0.25836753]
[1748825349825,0.0378987,105540.0,105530.0,0.24889219]
[1748825350023,0.04737378,105540.0,105530.0,0.26984314]
[1748825350254,0.04737378,105540.0,105530.0,0.27084314]
[1748825350864,0.22740094,105540.0,105530.0,0.24241514]
[1748825351071,0.20845159,105540.0,105530.0,0.23293926]
[1748825351265,0.20845159,105540.0,105530.0,0.24241514]
[1748825351633,0.20845159,105540.0,105530.0,0.25189093]
[1748825351777,0.20845159,105540.0,105530.0,0.2518908]
[1748825352024,0.20845159,105540.0,105530.0,0.01191957]
[1748825352240,0.22455159,105540.0,105530.0,0.01191913]
[1748825352454,0.20845159,105540.0,105530.0,0.01191913]
[1748825352881,0.20845159,105540.0,105530.0,0.20143869]
[1748825353093,0.20845159,105540.0,105530.0,0.20143766]
[1748825353300,0.20845159,105540.0,105530.0,0.19256819]
[1748825353507,0.20845159,105540.0,105530.0,0.20143766]
[1748825353682,0.20845159,105540.0,105530.0,0.19256819]
[1748825354115,0.20845159,105540.0,105530.0,0.20143757]
[1748825354323,0.20845159,105540.0,105530.0,0.20204407]
[1748825354535,0.01894953,105540.0,105530.0,0.26066476]
[1748825354738,0.21792622,105540.0,105530.0,0.24231986]
[1748825355148,0.21792622,105540.0,105530.0,0.26066493]
[1748825355352,0.63534484,105550.0,105540.0,0.1989766]
[1748825355556,0.64481859,105550.0,105530.0,0.25179466]
[1748825355763,0.6353445,105550.0,105530.0,0.25118864]
[1748825355972,0.19897615,105540.0,105530.0,0.25118881]
[1748825356385,0.20845123,105540.0,105530.0,0.26066433]
[1748825356610,0.20845123,105540.0,105530.0,0.25966433]
[1748825356818,0.20845123,105540.0,105530.0,0.26066433]
[1748825357021,0.19897669,105540.0,105530.0,0.25118899]
[1748825357232,0.19897669,105540.0,105530.0,0.25179547]
[1748825357438,0.19897669,105540.0,105530.0,0.24918923]
[1748825357651,0.19897669,105540.0,105530.0,0.21838975]
[1748825357844,0.19897669,105540.0,105530.0,0.20891405]
[1748825358051,0.19897669,105540.0,105530.0,0.21838993]
[1748825358170,0.19897669,105540.0,105530.0,0.20952004]
[1748825358587,0.19897669,105540.0,105530.0,0.00204863]
[1748825358784,0.57197669,105540.0,105530.0,0.00204863]
[1748825359010,0.57197669,105540.0,105530.0,0.00304863]
[1748825359447,0.57197669,105540.0,105530.0,0.01191944]
[1748825359689,0.58651754,105540.0,105530.0,0.00304863]
[1748825360240,0.58651754,105540.0,105530.0,0.01191969]
[1748825360449,0.58651754,105540.0,105530.0,0.00304863]
[1748825360724,0.58651754,105540.0,105530.0,0.01191969]
[1748825361165,0.58651754,105540.0,105530.0,0.00304863]
[1748825361579,0.58651754,105540.0,105530.0,0.01191969]
[1748825362018,0.58651754,105540.0,105530.0,0.02079075]
[1748825362458,0.58651754,105540.0,105530.0,0.01191969]
[1748825362879,0.58651754,105540.0,105530.0,0.02079075]
[1748825364242,0.58651754,105540.0,105530.0,0.01191969]
[1748825365156,0.58651754,105540.0,105530.0,0.02078888]
[1748825366075,0.58651754,105540.0,105530.0,0.01191969]
[1748825366310,0.58651754,105540.0,105530.0,0.02078655]
[1748825367906,0.67787754,105540.0,105530.0,0.02078445]
[1748825368154,0.67787754,105540.0,105530.0,0.01191969]
[1748825368574,0.67787754,105540.0,105530.0,0.02078445]
[1748825369801,0.66137754,105540.0,105530.0,0.02078445]
[1748825370018,0.64487754,105540.0,105530.0,0.02078445]
[1748825370453,0.64478752,105540.0,105530.0,0.02078446]
[1748825370673,0.64478752,105540.0,105530.0,0.01191969]
[1748825370926,0.64478752,105540.0,105530.0,0.02078446]
[1748825371650,0.64478752,105540.0,105530.0,0.02078422]
[1748825372329,0.64478752,105540.0,105530.0,0.02078408]
[1748825372579,0.65998752,105540.0,105530.0,0.02078408]
[1748825373454,0.67568752,105540.0,105530.0,0.02078545]
[1748825373894,0.67568752,105540.0,105530.0,0.01191969]
[1748825374112,0.67568752,105540.0,105530.0,0.02078576]
[1748825374776,0.67568752,105540.0,105530.0,0.01978576]
[1748825374995,0.64478752,105540.0,105530.0,0.01778576]
[1748825375232,0.64978752,105540.0,105530.0,0.0177863]
[1748825375866,0.64978752,105540.0,105530.0,0.01778641]
[1748825377126,0.64978752,105540.0,105530.0,0.01778654]
[1748825377335,0.64978752,105540.0,105530.0,0.00891969]
[1748825377550,0.64978752,105540.0,105530.0,0.01778654]
[1748825378724,0.64978752,105540.0,105530.0,0.01778722]
[1748825378935,0.64978752,105540.0,105530.0,0.00891969]
[1748825379117,0.64978752,105540.0,105530.0,0.01778722]
[1748825380733,0.64978752,105540.0,105530.0,0.00891969]
[1748825380950,0.64978752,105540.0,105530.0,0.01778931]
[1748825381185,0.64978752,105540.0,105530.0,0.00891969]
[1748825381394,0.66598752,105540.0,105530.0,0.01778931]
[1748825382015,0.66598752,105540.0,105530.0,0.01778954]
[1748825382291,0.66598752,105540.0,105530.0,0.01779058]
[1748825382900,0.66598752,105540.0,105530.0,0.01779121]
[1748825383100,0.66598752,105540.0,105530.0,0.01779146]
[1748825384146,0.66598752,105540.0,105530.0,0.00891969]
[1748825384356,0.66598752,105540.0,105530.0,0.01779169]
[1748825384769,0.66598752,105540.0,105530.0,0.00891969]
[1748825384990,0.66598752,105540.0,105530.0,0.01779169]
[1748825385153,0.66598752,105540.0,105530.0,0.00891969]
[1748825385486,0.64978752,105540.0,105530.0,0.01779191]
[1748825386135,0.64978752,105540.0,105530.0,0.01779373]
[1748825387128,0.64978752,105540.0,105530.0,0.01779623]
[1748825388224,0.64978752,105540.0,105530.0,0.01779637]
[1748825388981,0.68218752,105540.0,105530.0,0.01779637]
[1748825389286,0.68218752,105540.0,105530.0,0.01780253]
[1748825389700,0.68218752,105540.0,105530.0,0.00891969]
[1748825390148,0.68218752,105540.0,105530.0,0.01780257]
[1748825391225,0.68218752,105540.0,105530.0,0.00891969]
[1748825391479,0.68218752,105540.0,105530.0,0.01780261]
[1748825392170,0.68218752,105540.0,105530.0,0.01780218]
[1748825392777,0.68218752,105540.0,105530.0,0.01780195]
[1748825392988,0.68218752,105540.0,105530.0,0.00891969]
[1748825393196,0.68218752,105540.0,105530.0,0.01780195]
[1748825393398,0.68218752,105540.0,105530.0,0.00891969]
[1748825393606,0.68218752,105540.0,105530.0,0.01780195]
[1748825394446,0.68218752,105540.0,105530.0,0.01780178]
[1748825394701,0.66598752,105540.0,105530.0,0.01780178]
[1748825395169,0.66598752,105540.0,105530.0,0.00891969]
[1748825395389,0.66598752,105540.0,105530.0,0.01780178]
[1748825395849,0.77774182,105540.0,105530.0,0.00891969]
[1748825396063,0.77774182,105540.0,105530.0,0.01780166]
[1748825397217,0.77774182,105540.0,105530.0,0.01780156]
[1748825397912,0.77774182,105540.0,105530.0,0.01780154]
[1748825398570,0.76184182,105540.0,105530.0,0.01780154]
[1748825398817,0.77794182,105540.0,105530.0,0.00891969]
[1748825399038,0.77794182,105540.0,105530.0,0.01780149]
[1748825399496,0.80642322,105540.0,105530.0,0.01780149]
[1748825399759,4.34726482,105540.0,105530.0,3e-07]
[1748825399990,0.2085104,105510.0,105500.0,0.23362203]
[1748825400210,0.2085104,105510.0,105500.0,0.2431489]
[1748825400432,0.2085104,105510.0,105500.0,0.25262712]
[1748825400661,0.2085104,105510.0,105500.0,0.23367059]
[1748825400891,0.2085104,105510.0,105500.0,0.2526273]
[1748825401090,0.02843259,105510.0,105500.0,0.26210543]
[1748825401222,0.02843259,105510.0,105500.0,0.26510543]
[1748825401457,0.03791036,105510.0,105500.0,0.26510552]
[1748825401654,0.22746585,105510.0,105500.0,0.2556273]
[1748825401930,0.21798853,105510.0,105500.0,0.22719201]
[1748825402145,0.20851094,105510.0,105500.0,0.22719201]
[1748825402359,0.20851094,105510.0,105500.0,0.23867068]
[1748825402565,0.20851094,105510.0,105500.0,0.24814926]
[1748825402775,0.22709746,105510.0,105500.0,0.24814926]
[1748825403191,0.01895509,105510.0,105500.0,0.24614926]
[1748825403396,0.01895509,105510.0,105500.0,0.25562757]
[1748825403621,0.01995455,105510.0,105500.0,0.26510561]
[1748825403856,0.02943223,105510.0,105500.0,0.25262757]
[1748825404060,0.21898772,105510.0,105500.0,0.25262775]
[1748825404495,0.22851413,105510.0,105500.0,0.26210606]
[1748825405315,0.22851413,105510.0,105500.0,0.27158428]
[1748825405522,0.2379919,105510.0,105500.0,0.26210606]
[1748825405922,0.22851476,105510.0,105500.0,0.25262775]
[1748825406367,0.22851476,105510.0,105500.0,0.26210615]
[1748825406498,0.22851476,105510.0,105500.0,0.27158446]
[1748825406699,0.22851476,105510.0,105500.0,0.24314926]